fUSD/lending_fUSD_20260525
["ID","MTS","AMOUNT","RATE_DAILY","PERIOD"]
[422942815,1779663031000,-3138.0,0.00011382,2]
[422942822,1779663031000,-9214.9,0.00011594,2]
[422942832,1779663031000,-420.0,0.00012026,2]
[422942824,1779663031000,-8706.0,0.00011615,2]
[422942834,1779663031000,-363.58,0.00012068,2]
[422942826,1779663031000,-1923.08,0.00011702,2]
[422942836,1779663031000,-346.34,0.00012113,2]
[422942837,1779663031000,-334.01,0.00012307,2]
[422942830,1779663031000,-1680.0,0.0001202,2]
[422942898,1779663032000,-265.49849323,0.00012522,2]
[422942896,1779663032000,-500.0,0.00012522,2]
[422942892,1779663032000,-592.83302094,0.00012522,2]
[422942894,1779663032000,-500.0,0.00012522,2]
[422942888,1779663032000,-500.0,0.00012522,2]
[422942885,1779663032000,-500.0,0.00012522,2]
[422942881,1779663032000,-500.0,0.00012522,2]
[422942890,1779663032000,-500.0,0.00012522,2]
[422942879,1779663032000,-500.0,0.00012522,2]
[422942877,1779663032000,-500.0,0.00012522,2]
[422942911,1779663032000,-345.94766611,0.00012522,2]
[422942883,1779663032000,-500.0,0.00012522,2]
[422942899,1779663032000,-500.0,0.00012522,2]
[422942875,1779663032000,-500.0,0.00012522,2]
[422942918,1779663032000,-382830.496,0.00012523,2]
[422942930,1779663032000,-31575.25000921,0.00012523,2]
[422942933,1779663032000,-4309.0288124,0.00012523,2]
[422942926,1779663032000,-1720.98057503,0.00012523,2]
[422942928,1779663032000,-37726.16288894,0.00012523,2]
[422942924,1779663032000,-51419.2973475,0.00012523,2]
[422942921,1779663032000,-24761.18704708,0.00012523,2]
[422942902,1779663032000,-500.0,0.00012522,2]
[422942906,1779663032000,-359.74542368,0.00012522,2]
[422942908,1779663032000,-440.93033267,0.00012522,2]
[422942916,1779663032000,-225400.99449496,0.00012523,2]
[422942904,1779663032000,-500.0,0.00012522,2]
[422942914,1779663032000,-431.16033974,0.00012522,2]
[422942909,1779663032000,-158.65123286,0.00012522,2]
[422943182,1779663037000,-1304.90056787,0.00012523,2]
[422943184,1779663037000,-987.0933573,0.00012523,2]
[422943183,1779663037000,-465.16280073,0.00012523,2]
[422943186,1779663037000,-1890.27613519,0.00012523,2]
[422943185,1779663037000,-871.643,0.00012523,2]
[422943187,1779663037000,-916.60502421,0.00012523,2]
[422943188,1779663037000,-43027.66441813,0.00012523,2]
[422943189,1779663037000,-852.51481247,0.00012523,2]
[422943192,1779663039000,-1017.0539437,0.00012444,2]
[422943193,1779663039000,-7887.40236908,0.00012523,2]
[422943203,1779663043000,-1941.15252296,0.00012523,2]
[422943204,1779663043000,-1918.70152904,0.00012523,2]
[422943267,1779663045000,-396.79038489,0.00012523,2]
[422943340,1779663046000,-378.69464344,0.00012523,2]
[422943330,1779663046000,-2051.6734,0.00012523,2]
[422943333,1779663046000,-10799.34004367,0.00012523,2]
[422943335,1779663046000,-1125.62062013,0.00012523,2]
[422944234,1779663061000,150.0,8.251e-05,2]
[422944251,1779663735000,153.29,7.088e-05,2]
[422944250,1779663735000,153.29,6.766e-05,2]
[422944249,1779663735000,153.29,6.443e-05,2]
[422944248,1779663735000,153.29,6.121e-05,2]
[422944252,1779663736000,153.29,7.41e-05,2]
[422944253,1779663736000,153.29,7.732e-05,2]
[422944255,1779663736000,153.29,8.376e-05,2]
[422944256,1779663736000,153.29,8.699e-05,2]
[422944254,1779663736000,153.29,8.054e-05,2]
[422944282,1779664231000,-250.0,9.923e-05,2]
[422944284,1779664231000,-66.37447531,9.923e-05,2]
[422944289,1779664231000,-153.29,0.00010632,2]
[422944286,1779664231000,-178.021201,0.00010209,2]
[422944293,1779664231000,-219.03,0.00010817,2]
[422944287,1779664231000,-102.31432369,0.00010309,2]
[422944285,1779664231000,-153.29,9.987e-05,2]
[422944275,1779664231000,-153.29,9.021e-05,2]
[422944279,1779664231000,-250.0,9.923e-05,2]
[422944278,1779664231000,-153.29,9.665e-05,2]
[422944280,1779664231000,-250.0,9.923e-05,2]
[422944277,1779664231000,-237.0,9.442e-05,2]
[422944276,1779664231000,-153.29,9.343e-05,2]
[422944288,1779664231000,-50.97567631,0.00010309,2]
[422944281,1779664231000,-500.0,9.923e-05,2]
[422944290,1779664231000,-1852.42,0.00010655,2]
[422944291,1779664231000,-250.34,0.00010675,2]
[422944292,1779664231000,-277.07,0.00010746,2]
[422944310,1779664231000,-1867.1,0.00011372,2]
[422944312,1779664231000,-153.29,0.00011598,2]
[422944311,1779664231000,-251.7,0.00011546,2]
[422944307,1779664231000,-4874.0,0.00011138,2]
[422944302,1779664231000,-1441.0,0.00011012,2]
[422944303,1779664231000,-6916.17,0.00011046,2]
[422944304,1779664231000,-166.75,0.00011093,2]
[422944301,1779664231000,-153.29,0.00010954,2]
[422944309,1779664231000,-153.29,0.00011276,2]
[422944306,1779664231000,-200.0,0.00011112,2]
[422944299,1779664231000,-643.69420119,0.00010935,2]
[422944297,1779664231000,-5735.68727661,0.00010895,2]
[422944298,1779664231000,-1375.31272339,0.00010895,2]
[422944283,1779664231000,-233.62552469,9.923e-05,2]
[422944296,1779664231000,-1200.0,0.00010894,2]
[422944294,1779664231000,-500.0,0.00010875,2]
[422944300,1779664231000,-936.76203065,0.00010935,2]
[422944321,1779664232000,-37733.62045349,0.000124,2]
[422944313,1779664232000,-250.0,0.00011919,2]
[422944314,1779664232000,-153.29,0.0001192,2]
[422944318,1779664232000,-153.29,0.00012242,2]
[422944316,1779664232000,-277.07,0.00012089,2]
[422944317,1779664232000,-150.0,0.00012242,2]
[422944319,1779664232000,-178.02120099,0.00012317,2]
[422944315,1779664232000,-1680.0,0.00011983,2]
[422944322,1779664232000,-11064.22968362,0.000124,2]
[422944320,1779664232000,-1003.1640441,0.00012399,2]
[422944340,1779664237000,-948.94767356,0.000124,2]
[422944339,1779664237000,-393.34307301,0.000124,2]
[422944341,1779664237000,-1373.25000103,0.000124,2]
[422944342,1779664237000,-1222.69478,0.000124,2]
[422944343,1779664237000,-30879.36151299,0.000124,2]
[422944344,1779664237000,-500.0,0.00012417,2]
[422944384,1779664238000,-500.0,0.00013698,2]
[422944378,1779664238000,-500.0,0.00013698,2]
[422944375,1779664238000,-29229.1176,0.00013669,2]
[422944376,1779664238000,-2000.0,0.00013669,2]
[422944377,1779664238000,-325.9988,0.00013671,2]
[422944382,1779664238000,-500.0,0.00013698,2]
[422944381,1779664238000,-500.0,0.00013698,2]
[422944385,1779664238000,-500.0,0.00013698,2]
[422944387,1779664238000,-500.0,0.00013698,2]
[422944386,1779664238000,-406.86,0.00013698,2]
[422944392,1779664238000,-500.0,0.00013698,2]
[422944388,1779664238000,-500.0,0.00013698,2]
[422944389,1779664238000,-500.0,0.00013698,2]
[422944401,1779664238000,-500.0,0.00013698,2]
[422944395,1779664238000,-500.0,0.00013698,2]
[422944394,1779664238000,-500.0,0.00013698,2]
[422944391,1779664238000,-500.0,0.00013698,2]
[422944390,1779664238000,-500.0,0.00013698,2]
[422944393,1779664238000,-500.0,0.00013698,2]
[422944396,1779664238000,-500.0,0.00013698,2]
[422944399,1779664238000,-500.0,0.00013698,2]
[422944404,1779664238000,-166.66,0.00013699,2]
[422944398,1779664238000,-500.0,0.00013698,2]
[422944400,1779664238000,-500.0,0.00013698,2]
[422944403,1779664238000,-2500.0,0.00013699,2]
[422944406,1779664238000,-500.0,0.00013699,2]
[422944383,1779664238000,-500.0,0.00013698,2]
[422944380,1779664238000,-500.0,0.00013698,2]
[422944355,1779664238000,-1352.8607597,0.00012517,2]
[422944374,1779664238000,-24510.44348723,0.00013645,2]
[422944407,1779664238000,-500.0,0.00013699,2]
[422944345,1779664238000,-2734.08456127,0.00012417,2]
[422944346,1779664238000,-1230.88056007,0.00012417,2]
[422944348,1779664238000,-12226.51650359,0.00012507,2]
[422944356,1779664238000,-303.67456761,0.00012522,2]
[422944357,1779664238000,-151.0,0.00012523,2]
[422944349,1779664238000,-500.0,0.00012516,2]
[422944358,1779664238000,-916.32602543,0.00012523,2]
[422944347,1779664238000,-426.79475042,0.00012451,2]
[422944350,1779664238000,-124831.6948254,0.00012517,2]
[422944353,1779664238000,-9083.7292365,0.00012517,2]
[422944352,1779664238000,-7226.5113013,0.00012517,2]
[422944354,1779664238000,-32221.2168168,0.00012517,2]
[422944359,1779664238000,-420.0,0.0001253,3]
[422944361,1779664238000,-2582.87,0.00012592,2]
[422944371,1779664238000,-255.0,0.00013332,2]
[422944360,1779664238000,-363.58,0.00012551,2]
[422944364,1779664238000,-1867.1,0.00012793,2]
[422944363,1779664238000,-159.0,0.00012605,2]
[422944365,1779664238000,-3326.84918597,0.00012863,2]
[422944367,1779664238000,-166.75,0.00012924,2]
[422944366,1779664238000,-78729.81451819,0.00012894,2]
[422944369,1779664238000,-363.58,0.00013033,2]
[422944368,1779664238000,-167.05,0.00012963,2]
[422944370,1779664238000,-2351.0,0.00013182,2]
[422944372,1779664238000,-277.07,0.00013433,2]
[422944373,1779664238000,-363.58,0.00013516,2]
[422944379,1779664238000,-500.0,0.00013698,2]
[422944397,1779664238000,-500.0,0.00013698,2]
[422944351,1779664238000,-19055.3558828,0.00012517,2]
[422944408,1779664238000,-500.0,0.00013699,2]
[422944436,1779664238000,-500.0,0.00013699,2]
[422944440,1779664238000,-500.0,0.00013699,2]
[422944439,1779664238000,-500.0,0.00013699,2]
[422944444,1779664238000,-500.0,0.00013699,2]
[422944454,1779664238000,-500.0,0.00013699,2]
[422944443,1779664238000,-500.0,0.00013699,2]
[422944446,1779664238000,-500.0,0.00013699,2]
[422944449,1779664238000,-500.0,0.00013699,2]
[422944445,1779664238000,-500.0,0.00013699,2]
[422944450,1779664238000,-500.0,0.00013699,2]
[422944448,1779664238000,-500.0,0.00013699,2]
[422944453,1779664238000,-500.0,0.00013699,2]
[422944447,1779664238000,-500.0,0.00013699,2]
[422944452,1779664238000,-500.0,0.00013699,2]
[422944451,1779664238000,-500.0,0.00013699,2]
[422944455,1779664238000,-347.93087179,0.00013699,2]
[422944458,1779664238000,-500.0,0.00013699,2]
[422944456,1779664238000,-500.0,0.00013699,2]
[422944457,1779664238000,-500.0,0.00013699,2]
[422944459,1779664238000,-500.0,0.00013699,2]
[422944460,1779664238000,-500.0,0.00013699,2]
[422944461,1779664238000,-500.0,0.00013699,2]
[422944462,1779664238000,-555.08238767,0.00013699,2]
[422944464,1779664238000,-555.08238767,0.00013699,2]
[422944465,1779664238000,-555.08238767,0.00013699,2]
[422944463,1779664238000,-555.08238767,0.00013699,2]
[422944402,1779664238000,-1655.34,0.00013698,2]
[422944437,1779664238000,-500.0,0.00013699,2]
[422944438,1779664238000,-500.0,0.00013699,2]
[422944362,1779664238000,-163.08642863,0.00012605,2]
[422944435,1779664238000,-500.0,0.00013699,2]
[422944442,1779664238000,-500.0,0.00013699,2]
[422944409,1779664238000,-500.0,0.00013699,2]
[422944417,1779664238000,-500.0,0.00013699,2]
[422944418,1779664238000,-500.0,0.00013699,2]
[422944412,1779664238000,-500.0,0.00013699,2]
[422944411,1779664238000,-500.0,0.00013699,2]
[422944410,1779664238000,-500.0,0.00013699,2]
[422944419,1779664238000,-500.0,0.00013699,2]
[422944405,1779664238000,-500.0,0.00013699,2]
[422944416,1779664238000,-246.46870255,0.00013699,2]
[422944414,1779664238000,-500.0,0.00013699,2]
[422944415,1779664238000,-500.0,0.00013699,2]
[422944421,1779664238000,-500.0,0.00013699,2]
[422944420,1779664238000,-500.0,0.00013699,2]
[422944413,1779664238000,-500.0,0.00013699,2]
[422944424,1779664238000,-500.0,0.00013699,2]
[422944422,1779664238000,-500.0,0.00013699,2]
[422944434,1779664238000,-500.0,0.00013699,2]
[422944441,1779664238000,-500.0,0.00013699,2]
[422944431,1779664238000,-500.0,0.00013699,2]
[422944432,1779664238000,-500.0,0.00013699,2]
[422944430,1779664238000,-500.0,0.00013699,2]
[422944433,1779664238000,-500.0,0.00013699,2]
[422944427,1779664238000,-500.0,0.00013699,2]
[422944428,1779664238000,-500.0,0.00013699,2]
[422944429,1779664238000,-500.0,0.00013699,2]
[422944425,1779664238000,-500.0,0.00013699,2]
[422944423,1779664238000,-500.0,0.00013699,2]
[422944426,1779664238000,-500.0,0.00013699,2]
[422944512,1779664239000,-363.58,0.00015447,2]
[422944509,1779664239000,-1056.76,0.00015012,2]
[422944508,1779664239000,-363.58,0.00014964,2]
[422944507,1779664239000,-208.8304494,0.00014938,2]
[422944506,1779664239000,-215.34753388,0.00014938,2]
[422944501,1779664239000,-1056.76,0.00014663,2]
[422944503,1779664239000,-277.07,0.00014776,2]
[422944504,1779664239000,-5800.0,0.000149,2]
[422944502,1779664239000,-1230.88056005,0.00014772,2]
[422944500,1779664239000,-3326.84918595,0.00014534,2]
[422944498,1779664239000,-2090.0,0.000145,2]
[422944499,1779664239000,-433.0,0.00014519,2]
[422944510,1779664239000,-167.25,0.00015173,2]
[422944528,1779664239000,-363.58,0.00016895,2]
[422944513,1779664239000,-167.05,0.00015555,2]
[422944517,1779664239000,-555.0,0.00015805,2]
[422944518,1779664239000,-2734.08456127,0.00015858,2]
[422944516,1779664239000,-241.81204,0.00015794,2]
[422944514,1779664239000,-206.67,0.00015604,2]
[422944519,1779664239000,-363.58,0.0001593,2]
[422944520,1779664239000,-167.25,0.00015964,2]
[422944522,1779664239000,-9999.99,0.00016116,2]
[422944531,1779664239000,-166.0,0.00017148,2]
[422944530,1779664239000,-1230.88056005,0.00017126,2]
[422944524,1779664239000,-3326.84918595,0.00016205,2]
[422944523,1779664239000,-277.07,0.00016119,2]
[422944521,1779664239000,-300.0,0.00016,2]
[422944525,1779664239000,-363.58,0.00016412,2]
[422944515,1779664239000,-1867.1,0.00015636,2]
[422944496,1779664239000,-500.0,0.00014499,2]
[422944485,1779664239000,-1056.76,0.00014314,2]
[422944505,1779664239000,-3677.74,0.0001491,2]
[422944466,1779664239000,-555.08238767,0.00013699,2]
[422944467,1779664239000,-555.08238767,0.00013699,2]
[422944469,1779664239000,-555.08238767,0.00013699,2]
[422944468,1779664239000,-555.08238767,0.00013699,2]
[422944470,1779664239000,-555.08238767,0.00013699,2]
[422944476,1779664239000,-1056.76,0.00013965,2]
[422944479,1779664239000,-363.58,0.00013999,2]
[422944478,1779664239000,-200.0,0.00013994,2]
[422944471,1779664239000,-1429.0355737,0.00013754,2]
[422944477,1779664239000,-166.66,0.00013973,2]
[422944480,1779664239000,-250.0,0.00014,2]
[422944472,1779664239000,-842.26414313,0.00013835,2]
[422944474,1779664239000,-206.67,0.0001387,2]
[422944475,1779664239000,-100252.86,0.00013944,2]
[422944473,1779664239000,-166.66,0.00013836,2]
[422944481,1779664239000,-166.66,0.0001411,2]
[422944482,1779664239000,-2734.08456127,0.00014137,2]
[422944484,1779664239000,-166.66,0.00014247,2]
[422944527,1779664239000,-167.25,0.00016755,2]
[422944492,1779664239000,-500.0,0.00014499,2]
[422944493,1779664239000,-500.0,0.00014499,2]
[422944483,1779664239000,-1867.1,0.00014215,2]
[422944487,1779664239000,-166.66,0.00014384,2]
[422944486,1779664239000,-167.25,0.00014381,2]
[422944491,1779664239000,-500.0,0.00014499,2]
[422944489,1779664239000,-500.0,0.00014499,2]
[422944488,1779664239000,-363.58,0.00014481,2]
[422944490,1779664239000,-500.0,0.00014499,2]
[422944495,1779664239000,-500.0,0.00014499,2]
[422944497,1779664239000,-1655.34,0.00014499,2]
[422944526,1779664239000,-266.1,0.00016438,2]
[422944494,1779664239000,-500.0,0.00014499,2]
[422944533,1779664239000,-363.58,0.00017378,2]
[422944572,1779664239000,-421.0,0.00017452,2]
[422944564,1779664239000,-150.0,0.00017452,2]
[422944568,1779664239000,-150.0,0.00017452,2]
[422944562,1779664239000,-500.0,0.00017452,2]
[422944565,1779664239000,-220.86822716,0.00017452,2]
[422944574,1779664239000,-500.0,0.00017452,2]
[422944584,1779664239000,-500.0,0.00017452,2]
[422944585,1779664239000,-500.0,0.00017452,2]
[422944586,1779664239000,-194.17870396,0.00017452,2]
[422944575,1779664239000,-500.0,0.00017452,2]
[422944580,1779664239000,-500.0,0.00017452,2]
[422944583,1779664239000,-500.0,0.00017452,2]
[422944576,1779664239000,-421.0,0.00017452,2]
[422944578,1779664239000,-500.0,0.00017452,2]
[422944573,1779664239000,-500.0,0.00017452,2]
[422944582,1779664239000,-500.0,0.00017452,2]
[422944577,1779664239000,-500.0,0.00017452,2]
[422944581,1779664239000,-421.0,0.00017452,2]
[422944579,1779664239000,-500.0,0.00017452,2]
[422944589,1779664239000,-421.0,0.00017452,2]
[422944587,1779664239000,-421.0,0.00017452,2]
[422944590,1779664239000,-421.0,0.00017452,2]
[422944588,1779664239000,-421.0,0.00017452,2]
[422944595,1779664239000,-150.0,0.00017452,2]
[422944592,1779664239000,-444.29395763,0.00017452,2]
[422944594,1779664239000,-150.0,0.00017452,2]
[422944591,1779664239000,-421.0,0.00017452,2]
[422944593,1779664239000,-150.0,0.00017452,2]
[422944529,1779664239000,-1867.1,0.00017058,2]
[422944563,1779664239000,-421.0,0.00017452,2]
[422944570,1779664239000,-421.0,0.00017452,2]
[422944511,1779664239000,-1056.76,0.00015362,2]
[422944569,1779664239000,-155.39456345,0.00017452,2]
[422944543,1779664239000,-421.0,0.00017452,2]
[422944567,1779664239000,-421.0,0.00017452,2]
[422944534,1779664239000,-500.0,0.00017452,2]
[422944532,1779664239000,-206.67,0.00017337,2]
[422944544,1779664239000,-421.0,0.00017452,2]
[422944537,1779664239000,-500.0,0.00017452,2]
[422944536,1779664239000,-500.0,0.00017452,2]
[422944538,1779664239000,-500.0,0.00017452,2]
[422944541,1779664239000,-421.0,0.00017452,2]
[422944540,1779664239000,-318.29697578,0.00017452,2]
[422944539,1779664239000,-500.0,0.00017452,2]
[422944542,1779664239000,-421.0,0.00017452,2]
[422944546,1779664239000,-421.0,0.00017452,2]
[422944556,1779664239000,-421.0,0.00017452,2]
[422944558,1779664239000,-150.0,0.00017452,2]
[422944535,1779664239000,-500.0,0.00017452,2]
[422944545,1779664239000,-421.0,0.00017452,2]
[422944557,1779664239000,-167.43265885,0.00017452,2]
[422944571,1779664239000,-421.0,0.00017452,2]
[422944559,1779664239000,-500.0,0.00017452,2]
[422944551,1779664239000,-500.0,0.00017452,2]
[422944555,1779664239000,-500.0,0.00017452,2]
[422944553,1779664239000,-205.82532418,0.00017452,2]
[422944560,1779664239000,-421.0,0.00017452,2]
[422944549,1779664239000,-500.0,0.00017452,2]
[422944552,1779664239000,-421.0,0.00017452,2]
[422944550,1779664239000,-421.0,0.00017452,2]
[422944548,1779664239000,-421.0,0.00017452,2]
[422944547,1779664239000,-500.0,0.00017452,2]
[422944554,1779664239000,-150.0,0.00017452,2]
[422944561,1779664239000,-150.0,0.00017452,2]
[422944623,1779664240000,-150.0,0.00017452,2]
[422944629,1779664240000,-492.0,0.00017452,2]
[422944615,1779664240000,-500.0,0.00017452,2]
[422944620,1779664240000,-150.0,0.00017452,2]
[422944617,1779664240000,-460.33258363,0.00017452,2]
[422944625,1779664240000,-150.0,0.00017452,2]
[422944635,1779664240000,-492.0,0.00017452,2]
[422944624,1779664240000,-492.0,0.00017452,2]
[422944630,1779664240000,-492.0,0.00017452,2]
[422944632,1779664240000,-150.0,0.00017452,2]
[422944626,1779664240000,-492.0,0.00017452,2]
[422944631,1779664240000,-150.0,0.00017452,2]
[422944628,1779664240000,-492.0,0.00017452,2]
[422944633,1779664240000,-492.0,0.00017452,2]
[422944634,1779664240000,-274.06132765,0.00017452,2]
[422944637,1779664240000,-492.0,0.00017452,2]
[422944639,1779664240000,-492.0,0.00017452,2]
[422944647,1779664240000,-492.0,0.00017452,2]
[422944622,1779664240000,-492.0,0.00017452,2]
[422944627,1779664240000,-255.28499351,0.00017452,2]
[422944619,1779664240000,-454.03434406,0.00017452,2]
[422944605,1779664240000,-350.0,0.00017452,2]
[422944616,1779664240000,-500.0,0.00017452,2]
[422944598,1779664240000,-500.0,0.00017452,2]
[422944599,1779664240000,-527.91888578,0.00017452,2]
[422944596,1779664240000,-500.0,0.00017452,2]
[422944597,1779664240000,-258.63123921,0.00017452,2]
[422944604,1779664240000,-500.0,0.00017452,2]
[422944600,1779664240000,-500.0,0.00017452,2]
[422944601,1779664240000,-500.0,0.00017452,2]
[422944609,1779664240000,-500.0,0.00017452,2]
[422944638,1779664240000,-492.0,0.00017452,2]
[422944613,1779664240000,-500.0,0.00017452,2]
[422944607,1779664240000,-500.0,0.00017452,2]
[422944606,1779664240000,-150.0,0.00017452,2]
[422944602,1779664240000,-500.0,0.00017452,2]
[422944608,1779664240000,-150.0,0.00017452,2]
[422944611,1779664240000,-500.0,0.00017452,2]
[422944610,1779664240000,-192.20233017,0.00017452,2]
[422944612,1779664240000,-500.0,0.00017452,2]
[422944614,1779664240000,-500.0,0.00017452,2]
[422944618,1779664240000,-500.0,0.00017452,2]
[422944621,1779664240000,-150.0,0.00017452,2]
[422944603,1779664240000,-500.0,0.00017452,2]
[422944641,1779664240000,-492.0,0.00017452,2]
[422944658,1779664240000,-2310.27,0.00017909,2]
[422944636,1779664240000,-492.0,0.00017452,2]
[422944667,1779664240000,-500.0,0.0001794,2]
[422944644,1779664240000,-492.0,0.00017452,2]
[422944668,1779664240000,-500.0,0.0001794,2]
[422944671,1779664240000,-904.1372,0.00017941,2]
[422944672,1779664240000,-503.0,0.00017941,2]
[422944673,1779664240000,-3431.39827791,0.00017941,2]
[422944674,1779664240000,-1128.37587025,0.00017941,2]
[422944676,1779664240000,-500.0,0.00013972,2]
[422944675,1779664240000,-500.0,0.00013698,2]
[422944678,1779664240000,-2935.32508811,0.00017941,2]
[422944677,1779664240000,-6760.00000001,0.00017941,2]
[422944679,1779664240000,-791.1615828,0.00017941,2]
[422944680,1779664240000,-3780.55,0.00017941,2]
[422944682,1779664240000,-3702.5984944,0.00017941,2]
[422944681,1779664240000,-500.0,0.00014246,2]
[422944683,1779664240000,-1690.5913692,0.00017941,2]
[422944684,1779664240000,-500.0,0.00017941,2]
[422944686,1779664240000,-302.71482219,0.00017941,2]
[422944685,1779664240000,-769.9696,0.00017941,2]
[422944665,1779664240000,-500.0,0.0001794,2]
[422944670,1779664240000,-33452.56363718,0.00017941,2]
[422944660,1779664240000,-289.7638191,0.00017931,2]
[422944663,1779664240000,-500.0,0.0001794,2]
[422944640,1779664240000,-492.0,0.00017452,2]
[422944642,1779664240000,-492.0,0.00017452,2]
[422944643,1779664240000,-492.0,0.00017452,2]
[422944645,1779664240000,-492.0,0.00017452,2]
[422944646,1779664240000,-492.0,0.00017452,2]
[422944659,1779664240000,-174.019,0.00017909,2]
[422944662,1779664240000,-500.0,0.0001794,2]
[422944648,1779664240000,-492.0,0.00017452,2]
[422944651,1779664240000,-504.2358331,0.00017452,2]
[422944649,1779664240000,-492.0,0.00017452,2]
[422944654,1779664240000,-1017.0539437,0.00017836,2]
[422944650,1779664240000,-492.0,0.00017452,2]
[422944669,1779664240000,-1655.34,0.0001794,2]
[422944661,1779664240000,-500.0,0.0001794,2]
[422944655,1779664240000,-5000.0,0.00017841,2]
[422944664,1779664240000,-500.0,0.0001794,2]
[422944653,1779664240000,-2582.87,0.00017629,2]
[422944652,1779664240000,-2734.08456127,0.00017578,2]
[422944656,1779664240000,-363.58,0.0001786,2]
[422944657,1779664240000,-3326.84918595,0.00017875,2]
[422944666,1779664240000,-500.0,0.0001794,2]
[422944737,1779664246000,-341.48968916,0.00017452,2]
[422944741,1779664246000,-3634.13340004,0.00017941,2]
[422944739,1779664246000,-801.78527226,0.00017875,2]
[422944740,1779664246000,-32251.63743819,0.00017941,2]
[422944738,1779664246000,-1980.37949394,0.00017452,2]
[422944736,1779664246000,-304.27,0.00012281,2]
[422944760,1779664567000,150.21,8.007e-05,2]
[422944761,1779664567000,150.21,8.541e-05,2]
[422944807,1779665403000,500.0,8.776e-05,2]
[422944816,1779665431000,-158.0,9.423e-05,2]
[422944815,1779665431000,-150.0,9.332e-05,2]
[422944814,1779665431000,-500.0,9.324e-05,2]
[422944813,1779665431000,-150.0,9.24e-05,2]
[422944812,1779665431000,-150.21,9.075e-05,2]
[422944818,1779665431000,-236.41955341,9.487e-05,2]
[422944811,1779665431000,-500.0,9.05e-05,2]
[422944819,1779665431000,-202.62761654,9.598e-05,2]
[422944824,1779665431000,-4365.08670899,0.0001,2]
[422944820,1779665431000,-161.55902973,9.608e-05,2]
[422944822,1779665431000,-250.0,9.955e-05,2]
[422944823,1779665431000,-470.92117826,0.0001,2]
[422944821,1779665431000,-150.21,9.609e-05,2]
[422944825,1779665431000,-163.48,0.0001,2]
[422944817,1779665431000,-9.30044659,9.487e-05,2]
[422944865,1779665432000,-150.21,0.00012811,2]
[422944866,1779665432000,-19922.04075653,0.00013,5]
[422944863,1779665432000,-200.0,0.00012668,2]
[422944869,1779665432000,-150.0,0.00013488,2]
[422944870,1779665432000,-150.0,0.00013488,2]
[422944855,1779665432000,-1000.0,0.00011919,2]
[422944859,1779665432000,-150.21,0.00012278,2]
[422944858,1779665432000,-779.28,0.00012139,2]
[422944853,1779665432000,-150.21,0.0001121,2]
[422944860,1779665432000,-44107.32,0.00012282,2]
[422944861,1779665432000,-223.28,0.0001254,2]
[422944862,1779665432000,-833.75,0.00012662,2]
[422944881,1779665432000,-500.0,0.00013698,2]
[422944867,1779665432000,-150.21,0.00013345,2]
[422944868,1779665432000,-150.0,0.00013488,2]
[422944872,1779665432000,-150.0,0.00013488,2]
[422944871,1779665432000,-150.0,0.00013488,2]
[422944877,1779665432000,-150.0,0.00013624,2]
[422944873,1779665432000,-150.0,0.00013488,2]
[422944874,1779665432000,-150.0,0.00013488,2]